Cogmind - Beta 14 @@@ ROGUE MODE // 2025.04.26 @ 01:29:20 Player: jumpy Result: Destroyed self with Mini Grenade Launcher Performance ------------- Evolutions (1) 500 Regions Visited (4) 800 Robots Destroyed (80) 400 Value Destroyed (2065) 2065 Prototype IDs (3) 60 Alien Tech Used (0) 0 Bonus (400) 400 TOTAL SCORE: 4225 Bonus ------- High Alert Combat Kills 200 Entered Garrisons 200 Cogmind --------- Core Integrity 0/400 Matter 143/300 Energy 82/100 System Corruption 1% Temperature Cool (44) Movement Rolling (130) Ox2 Location -9/Garrison Parts ------- > --- POWER (1) -------- (None) > --- PROPULSION (2) --- Compact Wheel > --- UTILITY (4) ------ High-capacity Storage Unit > --- WEAPON (2) ------- Spread Laser Mini Grenade Launcher > --- INVENTORY (20) --- Small Laser Autogun Mini Grenade Launcher Peak State ------------ > --- POWER ------------ Improved Ion Engine > --- PROPULSION ------- Compact Wheel Armored Wheel > --- UTILITY ---------- High-capacity Storage Unit Core Shielding > --- WEAPON ----------- Improved Medium Laser Improved Medium Laser > --- INVENTORY -------- Ion Engine Compact Wheel Small Laser Spread Laser Shotgun Shotgun Mini Grenade Launcher [Rating: 14] Favorites ----------- Power Improved Ion Engine Engine Improved Ion Engine Propulsion Compact Wheel Treads Light Treads Wheel Compact Wheel Flight Unit Improved Flight Unit Utility High-capacity Storage Unit Device Seismic Detector Storage High-capacity Storage Unit Protection Core Shielding Weapon Improved Medium Laser Energy Gun Improved Medium Laser Ballistic Gun Shotgun Ballistic Cannon Improved Light Cannon Launcher Mini Grenade Launcher Build | -11 -10 -9 -9 -9 ------- Run | Yrd Mat Mat Sto Gar Slots Evolved 2 | . . 2 . . Power . | . . . . . Propulsion . | . . . . . Utility 2 | . . 2 . . Weapon . | . . . . . Parts Attached 64 | 7 4 39 9 5 Power 7 | 1 . 5 . 1 Engine 7 | 1 . 5 . 1 Core . | . . . . . Reactor . | . . . . . Propulsion 14 | 2 . 9 3 . Treads 2 | 2 . . . . Leg . | . . . . . Wheel 11 | . . 8 3 . Hover . | . . . . . Flight 1 | . . 1 . . Utility 9 | 2 . 7 . . Device 2 | 1 . 1 . . Storage 3 | 1 . 2 . . Processor . | . . . . . Hackware . | . . . . . Protection 4 | . . 4 . . Artifact . | . . . . . Weapon 34 | 2 4 18 6 4 Energy Gun 15 | 2 2 8 2 1 Energy Cannon . | . . . . . Ballistic Gun 10 | . . 7 2 1 Ballistic Cannon 3 | . . 2 1 . Launcher 6 | . 2 1 1 2 Special Weapon . | . . . . . Impact Weapon . | . . . . . Slashing Weapon . | . . . . . Piercing Weapon . | . . . . . Special Melee Weapon . | . . . . . Unidentified Prototypes 3 | . . 3 . . Parts Lost 18 | . . 8 5 5 Power 4 | . . 2 . 2 Propulsion 6 | . . 2 3 1 Utility 4 | . . 3 1 . Weapon 4 | . . 1 1 2 Highest Loss Streak 3 | . . 3 3 3 To Critical Strikes . | . . . . . Average Slot Usage (%) 74 | . 100 74 59 55 Engine 11 | . 14 10 11 9 Treads 3 | . 28 . . . Wheel 16 | . . 19 12 18 Device 3 | . 14 2 . . Storage 11 | . 14 11 11 11 Protection 7 | . . 9 3 . Energy Gun 11 | . 25 10 7 9 Ballistic Gun 7 | . . 8 9 1 Ballistic Cannon 2 | . . 2 4 2 Peak Build Rating 14 | 7 7 14 11 11 Average Rating 9 | 5 7 11 9 8 On Entrance 7 | . 7 7 11 11 Naked Turns . | . . . . . Heaviest Build 94 | 14 16 94 57 54 Greatest Support 40 | 40 40 40 32 32 Greatest Overweight (x) 17 | . . 4 17 3 Average Overweight (x) 1 | . . 2 3 1 Largest Inventory Capacity 25 | 8 8 25 20 20 Average Capacity 18 | 7 8 20 20 20 Most Carried 9 | 3 4 9 7 6 Average Carried 5 | 1 3 5 5 5 Final Capacity 20 | 8 8 20 20 20 Final Carried 7 | 3 4 7 6 3 Class Distribution -------------------- 100% | Mutant Dominant Class ---------------- Mutant | -10/Materials Mutant | -9/Materials Mutant | -9/Storage Mutant | -9/Garrison Resources | -11 -10 -9 -9 -9 ----------- Run | Yrd Mat Mat Sto Gar Matter Collected 1357 | 104 273 665 195 120 Remotely . | . . . . . Salvage Created 1982 | 13 90 1265 320 294 Parts 176 | 1 22 97 30 26 Haulers Intercepted 4 | . . 3 1 . Recyclers Shooed 2 | . 1 1 . . Parts Field Recycled . | . . . . . Retrieved Matter . | . . . . . Parts Self-Destructed . | . . . . . Prevented . | . . . . . Kills | -11 -10 -9 -9 -9 ------- Run | Yrd Mat Mat Sto Gar Combat Hostiles Destroyed 59 | . 6 30 8 15 Guns 32 | . . 24 5 3 Cannons 6 | . . 3 2 1 AOE 21 | . 6 3 1 11 Classes Destroyed 10 | 1 4 4 1 . Worker 1 | . 1 . . . Builder 6 | . 3 2 1 . Tunneler 3 | 1 . 2 . . Hauler 4 | . . 3 1 . Recycler 1 | . . . 1 . Watcher 6 | . 1 4 1 . Swarmer 22 | . 6 7 2 7 Grunt 25 | . . 13 4 8 Duelist 2 | . . 2 . . Sentry 10 | . . 8 2 . Best Kill Streak 10 | 1 8 4 9 10 Combat Bots Only 10 | . 3 4 3 10 Max Kills in Single Turn 4 | 1 2 2 3 4 Gunslinging . | . . . . . Exploded 4 | . 2 1 1 4 Melee . | . . . . . Uniques/NPCs Destroyed . | . . . . . Combat | -11 -10 -9 -9 -9 -------- Run | Yrd Mat Mat Sto Gar Hostile Shots Fired 285 | . 42 163 53 27 Missed 76 | . 9 45 15 7 Damage Taken 2825 | . 403 1515 553 354 Core 525 | . 94 196 86 149 Absorbed by Shields 18 | . . . . 18 Redirected to Shielding 28 | . . 28 . . Core Remaining (%) 81 | 100 62 . . . Volleys Fired 145 | 4 12 96 18 15 Largest 2 | 2 2 2 2 2 Hottest 115 | 90 90 115 95 95 Shots Fired 266 | 8 16 188 34 20 Gun 201 | 8 6 151 23 13 Cannon 39 | . . 29 9 1 Launcher 26 | . 10 8 2 6 Special . | . . . . . Kinetic 130 | . . 107 22 1 Thermal 110 | 8 6 73 10 13 Explosive 26 | . 10 8 2 6 Electromagnetic . | . . . . . Robot Hit Streak 11 | 5 2 11 11 4 Robot Miss Streak 3 | 1 2 3 1 2 Penetration Max . | . . . . . Secondary Targets 3 | . . 3 . . Max Gunslinging Chain 1 | . . 1 . . Shots Hit Robots 170 | 6 4 128 23 9 Core Hits 118 | 1 16 67 16 18 Critical Kills . | . . . . . Critical Parts Destroyed . | . . . . . Critical Strikes 7 | 1 . 5 1 . Burn 5 | 1 . 3 1 . Blast 2 | . . 2 . . Melee Attacks . | . . . . . Impact . | . . . . . Slashing . | . . . . . Piercing . | . . . . . Sneak Attacks . | . . . . . Combat Hostiles . | . . . . . Follow-up Attacks . | . . . . . Damage Inflicted 4556 | 85 601 2428 732 710 Guns 2144 | 85 12 1655 263 129 Cannons 559 | . . 391 150 18 Explosions 1853 | . 589 382 319 563 Melee . | . . . . . Ramming . | . . . . . Kinetic 1668 | . . 1339 311 18 Thermal 1035 | 85 12 707 102 129 Explosive 1853 | . 589 382 319 563 Electromagnetic . | . . . . . Impact . | . . . . . Slashing . | . . . . . Piercing . | . . . . . Highest Corruption 1 | . 1 . 1 1 Average Corruption 1 | . 1 . 1 1 Corruption Purged . | . . . . . Corruption Blocked . | . . . . . Effects 3 | . . . 3 . Matter Fused 1 | . . . 1 . Parts Rejected 1 | . . . 1 . Data Loss (major) 1 | . . . 1 . Overload Shots . | . . . . . Overflow Damage 39 | . 15 2 12 10 Projectiles . | . . . . . Explosions 39 | . 15 2 12 10 Melee . | . . . . . Knockbacks 4 | . . 4 . . Impact . | . . . . . Kinetic 3 | . . 3 . . Secondary 1 | . . 1 . . Self-Inflicted Damage 238 | . 87 . . 151 Shots 7 | . 4 . . 3 Rammed . | . . . . . Targets Rammed . | . . . . . Kicked . | . . . . . Crushed . | . . . . . Highest Temperature 159 | 60 30 159 105 51 Average Temperature 38 | 30 18 43 32 27 Received Heat Transfer 867 | . . 570 207 90 Siege Activations . | . . . . . Robots Corrupted . | . . . . . Combat Hostiles . | . . . . . Parts Fried . | . . . . . Impact Corruptions . | . . . . . Robots Melted . | . . . . . Combat Hostiles . | . . . . . Parts Melted 2 | . . 2 . . Heat Transferred 2625 | 297 25 1745 296 262 Parts Sabotaged . | . . . . . Parts Stolen . | . . . . . Parts Stripped . | . . . . . Power Chain Reactions . | . . . . . Alert | -11 -10 -9 -9 -9 ------- Run | Yrd Mat Mat Sto Gar Peak Influence 696 | 5 259 603 498 696 Initial 323 | . 3 109 238 323 Average 316 | 1 119 353 390 392 Maximum Alert Level 2 | . 1 2 2 2 Low Security (%) 26 | 100 75 18 . . Level 1 36 | . 24 35 43 79 Level 2 37 | . . 46 56 20 Level 3 . | . . . . . Level 4 . | . . . . . Level 5 . | . . . . . High Security . | . . . . . Max Security . | . . . . . Squads Dispatched 6 | . . 3 3 . Investigation 1 | . . 1 . . Extermination . | . . . . . Reinforcement 3 | . . 2 1 . Assault . | . . . . . Garrison 2 | . . . 2 . Intercept . | . . . . . Searches Triggered . | . . . . . Construction Impeded . | . . . . . Haulers Reinforced . | . . . . . Active Scanning Responses . | . . . . . Cargo Convoy Interrupts . | . . . . . Stealth | -11 -10 -9 -9 -9 --------- Run | Yrd Mat Mat Sto Gar Distress Signals 5 | . . 4 1 . Communications Jammed . | . . . . . Distress Signals . | . . . . . Times Spotted 75 | . 9 40 11 15 Peak Tracking Total 9 | . 3 6 4 9 Tactical Retreats 2 | . . 1 1 . Traps | -11 -10 -9 -9 -9 ------- Run | Yrd Mat Mat Sto Gar Traps Triggered 10 | . 2 1 2 5 Indirectly . | . . . . . Trap Hack Attempts . | . . . . . Triggered . | . . . . . Disarmed . | . . . . . Reprogrammed . | . . . . . Reused . | . . . . . Traps Extracted . | . . . . . Installed . | . . . . . Triggered . | . . . . . Machines | -11 -10 -9 -9 -9 ---------- Run | Yrd Mat Mat Sto Gar Machines Disabled 8 | . 2 3 1 2 Max in Single Turn 2 | . 1 1 1 2 Phase Generator 1 | . . . . 1 Machines Repaired . | . . . . . Machines Dismantled . | . . . . . Machines Sabotaged . | . . . . . Overloaded Fab Kills . | . . . . . Hacking | -11 -10 -9 -9 -9 --------- Run | Yrd Mat Mat Sto Gar Machines Accessed 2 | . . 1 1 . Terminals . | . . . . . Fabricators . | . . . . . Repair Stations . | . . . . . Recycling Units . | . . . . . Scanalyzers 1 | . . 1 . . Garrison Access 1 | . . . 1 . Total Hacks 8 | . . 6 2 . Successful 4 | . . 3 1 . Failed 4 | . . 3 1 . Catastrophic . | . . . . . Database Lockouts . | . . . . . Manual . | . . . . . Terminals . | . . . . . Fabricators . | . . . . . Repair Stations . | . . . . . Recycling Units . | . . . . . Scanalyzers 6 | . . 6 . . Garrison Access 2 | . . . 2 . Terminal Hacks . | . . . . . Fabricator Hacks . | . . . . . Repair Station Hacks . | . . . . . Recycling Unit Hacks . | . . . . . Scanalyzer 3 | . . 3 . . Insert Component 1 | . . 1 . . Analyze 2 | . . 2 . . Garrison Access Hacks 1 | . . . 1 . Unlock Access 1 | . . . 1 . Unauthorized Hacks . | . . . . . Terminals . | . . . . . Fabricators . | . . . . . Repair Stations . | . . . . . Recycling Units . | . . . . . Scanalyzers . | . . . . . Garrison Access . | . . . . . Data Cores Recovered . | . . . . . Used . | . . . . . Hacking Detections 2 | . . 1 1 . Full Trace Events . | . . . . . Feedback Events . | . . . . . Feedback Blocked . | . . . . . Robot Schematics Acquired . | . . . . . Robots Built . | . . . . . Authchips . | . . . . . Time . | . . . . . Total Robot Build Rating . | . . . . . Part Schematics Acquired 1 | . . 1 . . Parts Built . | . . . . . Authchips . | . . . . . Time . | . . . . . Total Part Build Rating . | . . . . . Parts Repaired . | . . . . . Time . | . . . . . Parts Recycled . | . . . . . Recycled Matter . | . . . . . Retrieved Matter . | . . . . . Retrieved Components . | . . . . . Parts Scanalyzed 1 | . . 1 . . Part Schematics Acquired 1 | . . 1 . . Parts Damaged . | . . . . . Bothacking | -11 -10 -9 -9 -9 ------------ Run | Yrd Mat Mat Sto Gar Used RIF Installer . | . . . . . Robots Hacked . | . . . . . Non-combat . | . . . . . Combat . | . . . . . Robot Hacks Applied . | . . . . . Relay Couplers Released . | . . . . . Fabnet Peak Effective % . | . . . . . Robots Rewired . | . . . . . Allies Hacked . | . . . . . Hacks Repelled . | . . . . . Allies | -11 -10 -9 -9 -9 -------- Run | Yrd Mat Mat Sto Gar Total Allies . | . . . . . Largest Group . | . . . . . Highest-Rated Group . | . . . . . Highest-Rated Ally . | . . . . . Total Orders . | . . . . . Ally Attacks . | . . . . . Total Damage . | . . . . . Kills . | . . . . . Allies Corrupted . | . . . . . Allies Melted . | . . . . . Intel | -11 -10 -9 -9 -9 ------- Run | Yrd Mat Mat Sto Gar Robot Analysis Total . | . . . . . Derelict Logs Recovered . | . . . . . Drone Launches . | . . . . . Drone Recoveries . | . . . . . Exploration | -11 -10 -9 -9 -9 ------------- Run | Yrd Mat Mat Sto Gar Turns Passed 2487 | 130 263 1688 227 179 Spaces Moved 1398 | 71 143 1001 99 84 Core 12 | 7 . . 5 . Treads 226 | 64 143 19 . . Legs . | . . . . . Wheels 1160 | . . 982 94 84 Hover . | . . . . . Flight . | . . . . . Fastest Speed 50 | 50 160 110 110 115 Average Speed 131 | 149 160 123 164 121 Slowest Speed 900 | 160 160 160 900 145 Overloaded Moves . | . . . . . Propulsion Burnouts . | . . . . . Robots Hopped . | . . . . . Cave-ins Triggered . | . . . . . Exploration Rate (%) 33 | 4 36 89 19 19 Regions Visited 4 Branch Regions 1 Pre-discovered Areas . | . . . . . Known Exits Taken 1 | . . . 1 . Unknown Exits Taken 3 | 1 1 1 . . Scrap Searched . | . . . . . Spaces Dug . | . . . . . Terrain Destroyed 209 | . 43 57 18 91 Melee . | . . . . . Projectile . | . . . . . AOE 209 | . 43 57 18 91 Terrain Rammed . | . . . . . Walls Destroyed . | . . . . . Machines Disabled . | . . . . . Actions | -11 -10 -9 -9 -9 --------- Run | Yrd Mat Mat Sto Gar Total 1781 | 84 159 1266 128 144 Wait 89 | . . 89 . . Move 1394 | 70 142 1000 98 84 Hop . | . . . . . Pick Up 24 | 3 1 18 2 . Fast Attach 18 | 7 . 8 3 . Attach 19 | . . 12 3 4 Detach 3 | . . 2 . 1 Swap 27 | . 4 19 3 1 Drop 23 | . . 22 1 . Fire 145 | 4 12 96 18 15 Melee . | . . . . . Ram . | . . . . . Kick . | . . . . . Crush . | . . . . . Escape Stasis 39 | . . . . 39 Rewire . | . . . . . Trap . | . . . . . Miscellaneous . | . . . . . Route ------- -11/Scrapyard -10/Materials (discovered 2 exits: *Mat / [*Min]) -9/Materials (discovered 5 exits: [*Mat x2] / [*Min x2] / *Sto) -9/Storage -9/Garrison History --------- Turn | Location | Event 54 | -11/Scrapyard | Discovered new exit (range 15) 131 | -11/Scrapyard | Entered Materials 201 | -10/Materials | Discovered new exit (range 16) 310 | -10/Materials | Build established: Mutant 374 | -10/Materials | Discovered new exit (range 13) 394 | -10/Materials | Entered another Materials area 394 | -9/Materials | Evolved 2 slots: Utility x2 1049 | -9/Materials | Discovered new exit (range 6) 1124 | -9/Materials | Discovered new exit (range 16) 1252 | -9/Materials | Discovered new exit (range 9) 1890 | -9/Materials | Lost 3 parts (1p1n1u) 1937 | -9/Materials | Discovered new exit (range 10) 2054 | -9/Materials | Discovered new exit (range 15) 2082 | -9/Materials | Entered Storage 2101 | -9/Storage | Core integrity fell below 50% 2171 | -9/Storage | Garrison activated, responded to threat 2202 | -9/Storage | Lost 3 parts (1n1u1w) 2290 | -9/Storage | Identified exit to Garrison 2309 | -9/Storage | Entered Garrison 2335 | -9/Garrison | Triggered checkpoint 2454 | -9/Garrison | Phase Generator disabled 2455 | -9/Garrison | Core integrity fell below 20% 2470 | -9/Garrison | Lost 3 parts (1p1n1w) 2477 | -9/Garrison | Triggered checkpoint 2478 | -9/Garrison | Triggered checkpoint 2488 | -9/Garrison | Destroyed self with Mini Grenade Launcher Last Messages --------------- 02410_ Field strength at 20. 02411_ Field strength at 10. 02412_ Stasis field depleted. 02435_ Imp. Ion Engine destroyed. 02437_ Imp. Medium Laser destroyed. 02439_ Com. Wheel destroyed. 02440_ G-47 Trooper destroyed. 02450_ Acquired 43 matter. 02452_ G-34 Mercenary destroyed. 02454_ Phase Generator explodes. 02454_ Machine disabled. 02456_ The unstable cave ceiling collapses. 02477_ Beams of light sweep through the air. An alarm sounds. 02478_ S-10 Pest destroyed. 02481_ Lgt. Ion Engine destroyed. 02482_ Destroyed Flight Unit. 02482_ S-10 Pest destroyed. 02485_ G-34 Mercenary destroyed. 02485_ S-10 Pest destroyed. 02488_ G-34 Mercenary destroyed. Map ----- +----------------------------------------------------+ | ????????????????????###?##???????????????????????? | | ??????????????????### # ###????????????????????? | | ?????????????????## # ##???????????????????? | | ????????????????## ##??????????????????? | | ????????????????# #??????????????????? | | ????????????????# # ##?????????????????? | | ????????######??# #?????????????????? | | ????????# #### #?????????????????? | | ????????# #? % #?????????????????? | | ????????# #??# # #?????????????????? | | ????????### #??# #?????????????????? | | ??????????# #??# #??????????????????? | | ??????????# #??# #??????????????????? | | ??????????# #???# # #=# #???????????????????? | | ????####### #???## ##???????????????????? | | ????# [ ^ ########## ###????????????????????? | | ??###*##### #??????????????????????? | | ??#!%=#???# #??????????????????????? | | ??# [ #???######## ##### #??????????????????????? | | ??# #????????????????# #??????????????????????? | | ??# =*#????????????????# #??????????????????????? | | ??# ! #????????????????# #??????????????????????? | | ??###[#????????????????# #??????????????????????? | | ????# #????????????????# #?????#????????????????? | | ????# #???????????????## ##?? #????????????????? | | ????# ###?????????????# @ # ###??????????????? | | ????# #"#?????????????# #?????????? | | ????# "#????????# %=* = ???????? | | ????# "#????????###### = [%[* ???????? | | ????# "#?????????????# # %= ###????????? | | ????# #"#?????????????# ## #?? ##??????????? | | ????#####?????????????" ? %= ??? ??????????? | | ??????????????????????" ?? % ??????????????? | | ??????????????????????" ?? = ?????????????? | | ??????????????????????" ??? ???????????? | | ??????????????????????# #??? ##??????????? | | ??????????????????????# ????? ## #???????????? | | ?????????????????????? ????? ? ???????????? | | ?????????????????????? ?????? ????????????????? | | ?????????????????????? ??????? ???????????????? | | ??????????????????????## #???????????????????????? | | ?????????????????????????????????????????????????? | | ?????????????????????????????????????????????????? | | ?????????????????????????????????????????????????? | | ?????????????????????????????????????????????????? | | ?????????????????????????????????????????????????? | | ?????????????????????????????????????????????????? | | ?????????????????????????????????????????????????? | | ?????????????????????????????????????????????????? | | ?????????????????????????????????????????????????? | +----------------------------------------------------+ Best States ------------- Heat Dissipation 38 Energy Generation 12 Energy Capacity 265 Matter Stores 300 Matter Capacity 300 Sight Range 16 Terrain Scan Density 10 Armor Coverage 225 Core Shielding 20 Evasion (%) 40 Recoil Reduction 2 Item Schematics ----------------- Imp. Medium Laser | -9/Materials | Scanalyzed Robot Schematics ------------------ None Fabricated ------------ Nothing Alien Tech Used ----------------- None Achievements -------------- None Challenges ------------ None Game ------ Seed SpectralTractorScanner Manual? 0 Play Time 00:19:14 Cumulative 52.7 hours Start 2025.04.26 @ 01:08:54 End 2025.04.26 @ 01:29:20 Sessions 1 Manual Loads 0 Difficulty Rogue Special Mode None Game No. 157 Rogue 157 Adventurer 0 Explorer 0 Win Type - Total 0 Types 0/0/0/0/0/0/0/0/0 Lore% 14 Gallery% 39 Achievement% 32 Wizard Run 0 Options --------- Layout 0 ASCII 0 Keyboard 0 Movement Numpad Keybinds 0 Fullscreen 2 Font 18/Terminus Map View 76x50 Zoom Use 0% Tactical HUD 1 Map Filters NONE Filters NONE Steam 1 RUN: 7cc340ab-f4ef-465f-84de-af967462ac99